Workbook

Sheet 总成绩
A1: 附件1
A2: 红谷滩区2022年幼儿园教师招聘面试考生 考试总成绩及入闱体检人员名单
A3: 序号 | B3: 职位代码 | C3: 准考证号 | D3: 姓名 | E3: 笔试成绩 | F3: 原始面试成绩 | G3: 修正系数 | H3: 修正后 面试成绩 | I3: 总成绩 | J3: 是否入闱体检 | K3: 备注
A4: 1 | B4: 100190401049 | C4: 336012707226 | D4: 汤慧玲 | E4: 89.0 | F4: =VLOOKUP(D4,'[1]修正后的面试成绩（排名 )'!$B$2:$J$92,7,0) -> 89.12 | G4: =VLOOKUP(D4,'[1]修正后的面试成绩（排名 )'!$B$2:$J$92,8,0) -> 1.0078135 | H4: =VLOOKUP(D4,'[1]修正后的面试成绩（排名 )'!$B$2:$J$92,9,0) -> 89.82 | I4: =H4*0.6+E4*0.4 -> 89.49 | J4: 入闱体检
A5: 2 | B5: 100190401049 | C5: 336012603217 | D5: 夏梦婷 | E5: 86.0 | F5: =VLOOKUP(D5,'[1]修正后的面试成绩（排名 )'!$B$2:$J$92,7,0) -> 89.4 | G5: =VLOOKUP(D5,'[1]修正后的面试成绩（排名 )'!$B$2:$J$92,8,0) -> 1.0078135 | H5: =VLOOKUP(D5,'[1]修正后的面试成绩（排名 )'!$B$2:$J$92,9,0) -> 90.1 | I5: 88.46 | J5: 入闱体检
A6: 3 | B6: 100190401049 | C6: 336012402619 | D6: 涂雯婧 | E6: 89.5 | F6: =VLOOKUP(D6,'[1]修正后的面试成绩（排名 )'!$B$2:$J$92,7,0) -> 89.16 | G6: =VLOOKUP(D6,'[1]修正后的面试成绩（排名 )'!$B$2:$J$92,8,0) -> 0.9822703 | H6: =VLOOKUP(D6,'[1]修正后的面试成绩（排名 )'!$B$2:$J$92,9,0) -> 87.58 | I6: 88.35 | J6: 入闱体检
A7: 4 | B7: 100190401049 | C7: 336211201121 | D7: 胡露连 | E7: 88.0 | F7: =VLOOKUP(D7,'[1]修正后的面试成绩（排名 )'!$B$2:$J$92,7,0) -> 89 | G7: =VLOOKUP(D7,'[1]修正后的面试成绩（排名 )'!$B$2:$J$92,8,0) -> 0.9822703 | H7: =VLOOKUP(D7,'[1]修正后的面试成绩（排名 )'!$B$2:$J$92,9,0) -> 87.42 | I7: 87.65 | J7: 入闱体检
A8: 5 | B8: 100190401049 | C8: 336012502025 | D8: 张思雨 | E8: 85.5 | F8: =VLOOKUP(D8,'[1]修正后的面试成绩（排名 )'!$B$2:$J$92,7,0) -> 88 | G8: =VLOOKUP(D8,'[1]修正后的面试成绩（排名 )'!$B$2:$J$92,8,0) -> 1.0078135 | H8: =VLOOKUP(D8,'[1]修正后的面试成绩（排名 )'!$B$2:$J$92,9,0) -> 88.69 | I8: 87.41 | J8: 入闱体检
A9: 6 | B9: 100190401049 | C9: 336012707514 | D9: 熊越 | E9: 84.5 | F9: =VLOOKUP(D9,'[1]修正后的面试成绩（排名 )'!$B$2:$J$92,7,0) -> 90.72 | G9: =VLOOKUP(D9,'[1]修正后的面试成绩（排名 )'!$B$2:$J$92,8,0) -> 0.9822703 | H9: =VLOOKUP(D9,'[1]修正后的面试成绩（排名 )'!$B$2:$J$92,9,0) -> 89.11 | I9: 87.27 | J9: 入闱体检
A10: 7 | B10: 100190401049 | C10: 336012601518 | D10: 肖静 | E10: 87.5 | F10: =VLOOKUP(D10,'[1]修正后的面试成绩（排名 )'!$B$2:$J$92,7,0) -> 86.24 | G10: =VLOOKUP(D10,'[1]修正后的面试成绩（排名 )'!$B$2:$J$92,8,0) -> 1.0065846 | H10: =VLOOKUP(D10,'[1]修正后的面试成绩（排名 )'!$B$2:$J$92,9,0) -> 86.81 | I10: 87.09 | J10: 入闱体检
A11: 8 | B11: 100190401049 | C11: 336012602306 | D11: 万若莲 | E11: 91.0 | F11: =VLOOKUP(D11,'[1]修正后的面试成绩（排名 )'!$B$2:$J$92,7,0) -> 83.44 | G11: =VLOOKUP(D11,'[1]修正后的面试成绩（排名 )'!$B$2:$J$92,8,0) -> 1.0065846 | H11: =VLOOKUP(D11,'[1]修正后的面试成绩（排名 )'!$B$2:$J$92,9,0) -> 83.99 | I11: 86.79 | J11: 入闱体检
A12: 9 | B12: 100190401049 | C12: 336012601317 | D12: 王美慧 | E12: 88.0 | F12: =VLOOKUP(D12,'[1]修正后的面试成绩（排名 )'!$B$2:$J$92,7,0) -> 85.2 | G12: =VLOOKUP(D12,'[1]修正后的面试成绩（排名 )'!$B$2:$J$92,8,0) -> 1.0065846 | H12: =VLOOKUP(D12,'[1]修正后的面试成绩（排名 )'!$B$2:$J$92,9,0) -> 85.76 | I12: 86.66 | J12: 入闱体检
A13: 10 | B13: 100190401049 | C13: 336012601417 | D13: 涂梦颖 | E13: 82.5 | F13: =VLOOKUP(D13,'[1]修正后的面试成绩（排名 )'!$B$2:$J$92,7,0) -> 88.4 | G13: =VLOOKUP(D13,'[1]修正后的面试成绩（排名 )'!$B$2:$J$92,8,0) -> 1.0065846 | H13: =VLOOKUP(D13,'[1]修正后的面试成绩（排名 )'!$B$2:$J$92,9,0) -> 88.98 | I13: 86.39 | J13: 入闱体检
A14: 11 | B14: 100190401049 | C14: 336012400219 | D14: 刘媛媛 | E14: 87.5 | F14: =VLOOKUP(D14,'[1]修正后的面试成绩（排名 )'!$B$2:$J$92,7,0) -> 86.72 | G14: =VLOOKUP(D14,'[1]修正后的面试成绩（排名 )'!$B$2:$J$92,8,0) -> 0.9822703 | H14: =VLOOKUP(D14,'[1]修正后的面试成绩（排名 )'!$B$2:$J$92,9,0) -> 85.18 | I14: 86.11 | J14: 入闱体检
A15: 12 | B15: 100190401049 | C15: 336040602416 | D15: 徐子菲 | E15: 86.5 | F15: =VLOOKUP(D15,'[1]修正后的面试成绩（排名 )'!$B$2:$J$92,7,0) -> 84.76 | G15: =VLOOKUP(D15,'[1]修正后的面试成绩（排名 )'!$B$2:$J$92,8,0) -> 1.0065846 | H15: =VLOOKUP(D15,'[1]修正后的面试成绩（排名 )'!$B$2:$J$92,9,0) -> 85.32 | I15: 85.79 | J15: 入闱体检
A16: 13 | B16: 100190401049 | C16: 336012707224 | D16: 高章敏 | E16: 82.5 | F16: =VLOOKUP(D16,'[1]修正后的面试成绩（排名 )'!$B$2:$J$92,7,0) -> 87.28 | G16: =VLOOKUP(D16,'[1]修正后的面试成绩（排名 )'!$B$2:$J$92,8,0) -> 1.0078135 | H16: =VLOOKUP(D16,'[1]修正后的面试成绩（排名 )'!$B$2:$J$92,9,0) -> 87.96 | I16: 85.78 | J16: 入闱体检
A17: 14 | B17: 100190401049 | C17: 336012502316 | D17: 邹琦 | E17: 86.5 | F17: =VLOOKUP(D17,'[1]修正后的面试成绩（排名 )'!$B$2:$J$92,7,0) -> 86.52 | G17: =VLOOKUP(D17,'[1]修正后的面试成绩（排名 )'!$B$2:$J$92,8,0) -> 0.9822703 | H17: =VLOOKUP(D17,'[1]修正后的面试成绩（排名 )'!$B$2:$J$92,9,0) -> 84.99 | I17: 85.59 | J17: 入闱体检
A18: 15 | B18: 100190401049 | C18: 336012601816 | D18: 江倩 | E18: 83.5 | F18: =VLOOKUP(D18,'[1]修正后的面试成绩（排名 )'!$B$2:$J$92,7,0) -> 86.24 | G18: =VLOOKUP(D18,'[1]修正后的面试成绩（排名 )'!$B$2:$J$92,8,0) -> 1.0078135 | H18: =VLOOKUP(D18,'[1]修正后的面试成绩（排名 )'!$B$2:$J$92,9,0) -> 86.91 | I18: 85.55 | J18: 入闱体检
A19: 16 | B19: 100190401049 | C19: 336012602611 | D19: 杨林慧 | E19: 79.0 | F19: =VLOOKUP(D19,'[1]修正后的面试成绩（排名 )'!$B$2:$J$92,7,0) -> 87.96 | G19: =VLOOKUP(D19,'[1]修正后的面试成绩（排名 )'!$B$2:$J$92,8,0) -> 1.0078135 | H19: =VLOOKUP(D19,'[1]修正后的面试成绩（排名 )'!$B$2:$J$92,9,0) -> 88.65 | I19: 84.79 | J19: 入闱体检
A20: 17 | B20: 100190401049 | C20: 336012601002 | D20: 邹伟 | E20: 86.5 | F20: =VLOOKUP(D20,'[1]修正后的面试成绩（排名 )'!$B$2:$J$92,7,0) -> 82.72 | G20: =VLOOKUP(D20,'[1]修正后的面试成绩（排名 )'!$B$2:$J$92,8,0) -> 1.0078135 | H20: =VLOOKUP(D20,'[1]修正后的面试成绩（排名 )'!$B$2:$J$92,9,0) -> 83.37 | I20: 84.62 | J20: 入闱体检
A21: 18 | B21: 100190401049 | C21: 336012600315 | D21: 万婷 | E21: 82.5 | F21: =VLOOKUP(D21,'[1]修正后的面试成绩（排名 )'!$B$2:$J$92,7,0) -> 87.52 | G21: =VLOOKUP(D21,'[1]修正后的面试成绩（排名 )'!$B$2:$J$92,8,0) -> 0.9822703 | H21: =VLOOKUP(D21,'[1]修正后的面试成绩（排名 )'!$B$2:$J$92,9,0) -> 85.97 | I21: 84.58 | J21: 入闱体检
A22: 19 | B22: 100190401049 | C22: 336012600707 | D22: 罗云宇 | E22: 89.0 | F22: =VLOOKUP(D22,'[1]修正后的面试成绩（排名 )'!$B$2:$J$92,7,0) -> 81.04 | G22: =VLOOKUP(D22,'[1]修正后的面试成绩（排名 )'!$B$2:$J$92,8,0) -> 1.0065846 | H22: =VLOOKUP(D22,'[1]修正后的面试成绩（排名 )'!$B$2:$J$92,9,0) -> 81.57 | I22: 84.54 | J22: 入闱体检
A23: 20 | B23: 100190401049 | C23: 336012501302 | D23: 黄雨萱 | E23: 86.5 | F23: =VLOOKUP(D23,'[1]修正后的面试成绩（排名 )'!$B$2:$J$92,7,0) -> 83.84 | G23: =VLOOKUP(D23,'[1]修正后的面试成绩（排名 )'!$B$2:$J$92,8,0) -> 0.9822703 | H23: =VLOOKUP(D23,'[1]修正后的面试成绩（排名 )'!$B$2:$J$92,9,0) -> 82.35 | I23: 84.01 | J23: 入闱体检
A24: 21 | B24: 100190401049 | C24: 336012603427 | D24: 龚诗萱 | E24: 89.0 | F24: =VLOOKUP(D24,'[1]修正后的面试成绩（排名 )'!$B$2:$J$92,7,0) -> 81.88 | G24: =VLOOKUP(D24,'[1]修正后的面试成绩（排名 )'!$B$2:$J$92,8,0) -> 0.9822703 | H24: =VLOOKUP(D24,'[1]修正后的面试成绩（排名 )'!$B$2:$J$92,9,0) -> 80.43 | I24: 83.86 | J24: 入闱体检
A25: 22 | B25: 100190401049 | C25: 336012601014 | D25: 李小洋 | E25: 77.5 | F25: =VLOOKUP(D25,'[1]修正后的面试成绩（排名 )'!$B$2:$J$92,7,0) -> 87.4 | G25: =VLOOKUP(D25,'[1]修正后的面试成绩（排名 )'!$B$2:$J$92,8,0) -> 1.0078135 | H25: =VLOOKUP(D25,'[1]修正后的面试成绩（排名 )'!$B$2:$J$92,9,0) -> 88.08 | I25: 83.85 | J25: 入闱体检
A26: 23 | B26: 100190401049 | C26: 336012400710 | D26: 潘丽 | E26: 82.5 | F26: =VLOOKUP(D26,'[1]修正后的面试成绩（排名 )'!$B$2:$J$92,7,0) -> 84.08 | G26: =VLOOKUP(D26,'[1]修正后的面试成绩（排名 )'!$B$2:$J$92,8,0) -> 1.0078135 | H26: =VLOOKUP(D26,'[1]修正后的面试成绩（排名 )'!$B$2:$J$92,9,0) -> 84.74 | I26: 83.84 | J26: 入闱体检
A27: 24 | B27: 100190401049 | C27: 336012600814 | D27: 金小芸 | E27: 81.5 | F27: =VLOOKUP(D27,'[1]修正后的面试成绩（排名 )'!$B$2:$J$92,7,0) -> 84.64 | G27: =VLOOKUP(D27,'[1]修正后的面试成绩（排名 )'!$B$2:$J$92,8,0) -> 1.0065846 | H27: =VLOOKUP(D27,'[1]修正后的面试成绩（排名 )'!$B$2:$J$92,9,0) -> 85.2 | I27: 83.72 | J27: 入闱体检
A28: 25 | B28: 100190401049 | C28: 336012400713 | D28: 郭奇 | E28: 85.5 | F28: =VLOOKUP(D28,'[1]修正后的面试成绩（排名 )'!$B$2:$J$92,7,0) -> 81.88 | G28: =VLOOKUP(D28,'[1]修正后的面试成绩（排名 )'!$B$2:$J$92,8,0) -> 1.0065846 | H28: =VLOOKUP(D28,'[1]修正后的面试成绩（排名 )'!$B$2:$J$92,9,0) -> 82.42 | I28: 83.65 | J28: 入闱体检
A29: 26 | B29: 100190401049 | C29: 336211402710 | D29: 舒昕悦 | E29: 84.5 | F29: =VLOOKUP(D29,'[1]修正后的面试成绩（排名 )'!$B$2:$J$92,7,0) -> 84.08 | G29: =VLOOKUP(D29,'[1]修正后的面试成绩（排名 )'!$B$2:$J$92,8,0) -> 0.9822703 | H29: =VLOOKUP(D29,'[1]修正后的面试成绩（排名 )'!$B$2:$J$92,9,0) -> 82.59 | I29: 83.35 | J29: 入闱体检
A30: 27 | B30: 100190401049 | C30: 336012400401 | D30: 危郁瑾 | E30: 81.5 | F30: =VLOOKUP(D30,'[1]修正后的面试成绩（排名 )'!$B$2:$J$92,7,0) -> 83.84 | G30: =VLOOKUP(D30,'[1]修正后的面试成绩（排名 )'!$B$2:$J$92,8,0) -> 1.0078135 | H30: =VLOOKUP(D30,'[1]修正后的面试成绩（排名 )'!$B$2:$J$92,9,0) -> 84.5 | I30: 83.30 | J30: 入闱体检
A31: 28 | B31: 100190401049 | C31: 336211304128 | D31: 王菲 | E31: 83.5 | F31: =VLOOKUP(D31,'[1]修正后的面试成绩（排名 )'!$B$2:$J$92,7,0) -> 82.04 | G31: =VLOOKUP(D31,'[1]修正后的面试成绩（排名 )'!$B$2:$J$92,8,0) -> 1.0078135 | H31: =VLOOKUP(D31,'[1]修正后的面试成绩（排名 )'!$B$2:$J$92,9,0) -> 82.68 | I31: 83.01
A32: 29 | B32: 100190401049 | C32: 336012602724 | D32: 王雪嫣 | E32: 86.5 | F32: =VLOOKUP(D32,'[1]修正后的面试成绩（排名 )'!$B$2:$J$92,7,0) -> 81.92 | G32: =VLOOKUP(D32,'[1]修正后的面试成绩（排名 )'!$B$2:$J$92,8,0) -> 0.9822703 | H32: =VLOOKUP(D32,'[1]修正后的面试成绩（排名 )'!$B$2:$J$92,9,0) -> 80.47 | I32: 82.88
A33: 30 | B33: 100190401049 | C33: 336250107004 | D33: 邹狄嫒 | E33: 80.0 | F33: =VLOOKUP(D33,'[1]修正后的面试成绩（排名 )'!$B$2:$J$92,7,0) -> 83.84 | G33: =VLOOKUP(D33,'[1]修正后的面试成绩（排名 )'!$B$2:$J$92,8,0) -> 1.0065846 | H33: =VLOOKUP(D33,'[1]修正后的面试成绩（排名 )'!$B$2:$J$92,9,0) -> 84.39 | I33: 82.63
A34: 31 | B34: 100190401049 | C34: 336012500716 | D34: 樊妮娇 | E34: 79.5 | F34: =VLOOKUP(D34,'[1]修正后的面试成绩（排名 )'!$B$2:$J$92,7,0) -> 83.96 | G34: =VLOOKUP(D34,'[1]修正后的面试成绩（排名 )'!$B$2:$J$92,8,0) -> 1.0065846 | H34: =VLOOKUP(D34,'[1]修正后的面试成绩（排名 )'!$B$2:$J$92,9,0) -> 84.51 | I34: 82.51
A35: 32 | B35: 100190401049 | C35: 336012601519 | D35: 邹子珺 | E35: 82.5 | F35: =VLOOKUP(D35,'[1]修正后的面试成绩（排名 )'!$B$2:$J$92,7,0) -> 81.96 | G35: =VLOOKUP(D35,'[1]修正后的面试成绩（排名 )'!$B$2:$J$92,8,0) -> 1.0065846 | H35: =VLOOKUP(D35,'[1]修正后的面试成绩（排名 )'!$B$2:$J$92,9,0) -> 82.5 | I35: 82.50
A36: 33 | B36: 100190401049 | C36: 336012502703 | D36: 曾婷婷 | E36: 87.5 | F36: =VLOOKUP(D36,'[1]修正后的面试成绩（排名 )'!$B$2:$J$92,7,0) -> 80.2 | G36: =VLOOKUP(D36,'[1]修正后的面试成绩（排名 )'!$B$2:$J$92,8,0) -> 0.9822703 | H36: =VLOOKUP(D36,'[1]修正后的面试成绩（排名 )'!$B$2:$J$92,9,0) -> 78.78 | I36: =H36*0.6+E36*0.4 -> 82.27
A37: 34 | B37: 100190401049 | C37: 336012400821 | D37: 吴雪娜 | E37: 77.5 | F37: =VLOOKUP(D37,'[1]修正后的面试成绩（排名 )'!$B$2:$J$92,7,0) -> 84.76 | G37: =VLOOKUP(D37,'[1]修正后的面试成绩（排名 )'!$B$2:$J$92,8,0) -> 1.0065846 | H37: =VLOOKUP(D37,'[1]修正后的面试成绩（排名 )'!$B$2:$J$92,9,0) -> 85.32 | I37: 82.19
A38: 35 | B38: 100190401049 | C38: 336230301126 | D38: 方翠霞 | E38: 81.0 | F38: =VLOOKUP(D38,'[1]修正后的面试成绩（排名 )'!$B$2:$J$92,7,0) -> 84.2 | G38: =VLOOKUP(D38,'[1]修正后的面试成绩（排名 )'!$B$2:$J$92,8,0) -> 0.9822703 | H38: =VLOOKUP(D38,'[1]修正后的面试成绩（排名 )'!$B$2:$J$92,9,0) -> 82.71 | I38: 82.03
A39: 36 | B39: 100190401049 | C39: 336012400306 | D39: 聂影思 | E39: 80.0 | F39: =VLOOKUP(D39,'[1]修正后的面试成绩（排名 )'!$B$2:$J$92,7,0) -> 84.48 | G39: =VLOOKUP(D39,'[1]修正后的面试成绩（排名 )'!$B$2:$J$92,8,0) -> 0.9822703 | H39: =VLOOKUP(D39,'[1]修正后的面试成绩（排名 )'!$B$2:$J$92,9,0) -> 82.98 | I39: 81.79
A40: 37 | B40: 100190401049 | C40: 336012502209 | D40: 彭丽琪 | E40: 85.5 | F40: =VLOOKUP(D40,'[1]修正后的面试成绩（排名 )'!$B$2:$J$92,7,0) -> 78.76 | G40: =VLOOKUP(D40,'[1]修正后的面试成绩（排名 )'!$B$2:$J$92,8,0) -> 1.0065846 | H40: =VLOOKUP(D40,'[1]修正后的面试成绩（排名 )'!$B$2:$J$92,9,0) -> 79.28 | I40: 81.77
A41: 38 | B41: 100190401049 | C41: 336012403026 | D41: 罗嘉欣 | E41: 83.5 | F41: =VLOOKUP(D41,'[1]修正后的面试成绩（排名 )'!$B$2:$J$92,7,0) -> 79.92 | G41: =VLOOKUP(D41,'[1]修正后的面试成绩（排名 )'!$B$2:$J$92,8,0) -> 1.0078135 | H41: =VLOOKUP(D41,'[1]修正后的面试成绩（排名 )'!$B$2:$J$92,9,0) -> 80.54 | I41: 81.72
A42: 39 | B42: 100190401049 | C42: 336060110024 | D42: 黄晶 | E42: 83.5 | F42: =VLOOKUP(D42,'[1]修正后的面试成绩（排名 )'!$B$2:$J$92,7,0) -> 79.48 | G42: =VLOOKUP(D42,'[1]修正后的面试成绩（排名 )'!$B$2:$J$92,8,0) -> 1.0065846 | H42: =VLOOKUP(D42,'[1]修正后的面试成绩（排名 )'!$B$2:$J$92,9,0) -> 80 | I42: 81.40
A43: 40 | B43: 100190401049 | C43: 336211504227 | D43: 詹洁 | E43: 83.0 | F43: =VLOOKUP(D43,'[1]修正后的面试成绩（排名 )'!$B$2:$J$92,7,0) -> 81.76 | G43: =VLOOKUP(D43,'[1]修正后的面试成绩（排名 )'!$B$2:$J$92,8,0) -> 0.9822703 | H43: =VLOOKUP(D43,'[1]修正后的面试成绩（排名 )'!$B$2:$J$92,9,0) -> 80.31 | I43: 81.39
A44: 41 | B44: 100190401049 | C44: 336012400612 | D44: 章双双 | E44: 84.0 | F44: =VLOOKUP(D44,'[1]修正后的面试成绩（排名 )'!$B$2:$J$92,7,0) -> 79.12 | G44: =VLOOKUP(D44,'[1]修正后的面试成绩（排名 )'!$B$2:$J$92,8,0) -> 1.0065846 | H44: =VLOOKUP(D44,'[1]修正后的面试成绩（排名 )'!$B$2:$J$92,9,0) -> 79.64 | I44: 81.38
A45: 42 | B45: 100190401049 | C45: 336012603113 | D45: 孔雅莉 | E45: 84.5 | F45: =VLOOKUP(D45,'[1]修正后的面试成绩（排名 )'!$B$2:$J$92,7,0) -> 80.4 | G45: =VLOOKUP(D45,'[1]修正后的面试成绩（排名 )'!$B$2:$J$92,8,0) -> 0.9822703 | H45: =VLOOKUP(D45,'[1]修正后的面试成绩（排名 )'!$B$2:$J$92,9,0) -> 78.97 | I45: 81.18
A46: 43 | B46: 100190401049 | C46: 336221808229 | D46: 余翘 | E46: 87.0 | F46: =VLOOKUP(D46,'[1]修正后的面试成绩（排名 )'!$B$2:$J$92,7,0) -> 75.36 | G46: =VLOOKUP(D46,'[1]修正后的面试成绩（排名 )'!$B$2:$J$92,8,0) -> 1.0065846 | H46: =VLOOKUP(D46,'[1]修正后的面试成绩（排名 )'!$B$2:$J$92,9,0) -> 75.86 | I46: 80.32
A47: 44 | B47: 100190401049 | C47: 336012401925 | D47: 许阿平 | E47: 81.0 | F47: =VLOOKUP(D47,'[1]修正后的面试成绩（排名 )'!$B$2:$J$92,7,0) -> 80 | G47: =VLOOKUP(D47,'[1]修正后的面试成绩（排名 )'!$B$2:$J$92,8,0) -> 0.9822703 | H47: =VLOOKUP(D47,'[1]修正后的面试成绩（排名 )'!$B$2:$J$92,9,0) -> 78.58 | I47: 79.55
A48: 45 | B48: 100190401049 | C48: 336012502008 | D48: 龚梦琴 | E48: 84.5 | F48: =VLOOKUP(D48,'[1]修正后的面试成绩（排名 )'!$B$2:$J$92,7,0) -> 75.04 | G48: =VLOOKUP(D48,'[1]修正后的面试成绩（排名 )'!$B$2:$J$92,8,0) -> 1.0065846 | H48: =VLOOKUP(D48,'[1]修正后的面试成绩（排名 )'!$B$2:$J$92,9,0) -> 75.53 | I48: 79.12
A49: 46 | B49: 100190401049 | C49: 336012500709 | D49: 吴紫芸 | E49: 81.0 | F49: =VLOOKUP(D49,'[1]修正后的面试成绩（排名 )'!$B$2:$J$92,7,0) -> 79 | G49: =VLOOKUP(D49,'[1]修正后的面试成绩（排名 )'!$B$2:$J$92,8,0) -> 0.9822703 | H49: =VLOOKUP(D49,'[1]修正后的面试成绩（排名 )'!$B$2:$J$92,9,0) -> 77.6 | I49: 78.96
A50: 47 | B50: 100190401049 | C50: 336012602101 | D50: 徐童 | E50: 78.5 | F50: =VLOOKUP(D50,'[1]修正后的面试成绩（排名 )'!$B$2:$J$92,7,0) -> 76.6 | G50: =VLOOKUP(D50,'[1]修正后的面试成绩（排名 )'!$B$2:$J$92,8,0) -> 1.0078135 | H50: =VLOOKUP(D50,'[1]修正后的面试成绩（排名 )'!$B$2:$J$92,9,0) -> 77.2 | I50: 77.72
A51: 48 | B51: 100190401049 | C51: 336012401204 | D51: 黄红 | E51: 79.0 | F51: =VLOOKUP(D51,'[1]修正后的面试成绩（排名 )'!$B$2:$J$92,7,0) -> 75.08 | G51: =VLOOKUP(D51,'[1]修正后的面试成绩（排名 )'!$B$2:$J$92,8,0) -> 1.0078135 | H51: =VLOOKUP(D51,'[1]修正后的面试成绩（排名 )'!$B$2:$J$92,9,0) -> 75.67 | I51: 77.00
A52: 49 | B52: 100190401049 | C52: 336012601625 | D52: 巩玉伟 | E52: 77.5 | F52: =VLOOKUP(D52,'[1]修正后的面试成绩（排名 )'!$B$2:$J$92,7,0) -> 73.48 | G52: =VLOOKUP(D52,'[1]修正后的面试成绩（排名 )'!$B$2:$J$92,8,0) -> 1.0078135 | H52: =VLOOKUP(D52,'[1]修正后的面试成绩（排名 )'!$B$2:$J$92,9,0) -> 74.05 | I52: 75.43
A53: 50 | B53: 100190401049 | C53: 336012501902 | D53: 周洛艺 | E53: 85.5 | F53: =VLOOKUP(D53,'[1]修正后的面试成绩（排名 )'!$B$2:$J$92,7,0) -> 67.92 | G53: =VLOOKUP(D53,'[1]修正后的面试成绩（排名 )'!$B$2:$J$92,8,0) -> 1.0078135 | H53: =VLOOKUP(D53,'[1]修正后的面试成绩（排名 )'!$B$2:$J$92,9,0) -> 68.45 | I53: 75.27
A54: 51 | B54: 100190401049 | C54: 336012400213 | D54: 刘惠兰 | E54: 81.0 | F54: =VLOOKUP(D54,'[1]修正后的面试成绩（排名 )'!$B$2:$J$92,7,0) -> 70.72 | G54: =VLOOKUP(D54,'[1]修正后的面试成绩（排名 )'!$B$2:$J$92,8,0) -> 1.0065846 | H54: =VLOOKUP(D54,'[1]修正后的面试成绩（排名 )'!$B$2:$J$92,9,0) -> 71.19 | I54: 75.11
A55: 52 | B55: 100190401049 | C55: 336012500505 | D55: 程笑 | E55: 78.0 | F55: =VLOOKUP(D55,'[1]修正后的面试成绩（排名 )'!$B$2:$J$92,7,0) -> 72.08 | G55: =VLOOKUP(D55,'[1]修正后的面试成绩（排名 )'!$B$2:$J$92,8,0) -> 1.0078135 | H55: =VLOOKUP(D55,'[1]修正后的面试成绩（排名 )'!$B$2:$J$92,9,0) -> 72.64 | I55: 74.78
A56: 53 | B56: 100190401049 | C56: 336012401917 | D56: 万梦倩 | E56: 77.5 | F56: =VLOOKUP(D56,'[1]修正后的面试成绩（排名 )'!$B$2:$J$92,7,0) -> 65.48 | G56: =VLOOKUP(D56,'[1]修正后的面试成绩（排名 )'!$B$2:$J$92,8,0) -> 1.0078135 | H56: =VLOOKUP(D56,'[1]修正后的面试成绩（排名 )'!$B$2:$J$92,9,0) -> 65.99 | I56: 70.59
A57: 54 | B57: 100190401049 | C57: 336012601630 | D57: 周璐璐 | E57: 79.5 | F57: =VLOOKUP(D57,'[1]修正后的面试成绩（排名 )'!$B$2:$J$92,7,0) -> 0 | G57: =VLOOKUP(D57,'[1]修正后的面试成绩（排名 )'!$B$2:$J$92,8,0) -> 0.9822703 | H57: =VLOOKUP(D57,'[1]修正后的面试成绩（排名 )'!$B$2:$J$92,9,0) -> 0 | I57: 31.80
A58: 55 | B58: 100190401050 | C58: 336012707421 | D58: 邹宇帆 | E58: 85.0 | F58: =VLOOKUP(D58,'[1]修正后的面试成绩（排名 )'!$B$2:$J$92,7,0) -> 92.24 | G58: =VLOOKUP(D58,'[1]修正后的面试成绩（排名 )'!$B$2:$J$92,8,0) -> 0.9860574 | H58: =VLOOKUP(D58,'[1]修正后的面试成绩（排名 )'!$B$2:$J$92,9,0) -> 90.95 | I58: 88.57 | J58: 入闱体检
A59: 56 | B59: 100190401050 | C59: 336221808108 | D59: 丁林美 | E59: 89.5 | F59: =VLOOKUP(D59,'[1]修正后的面试成绩（排名 )'!$B$2:$J$92,7,0) -> 85.76 | G59: =VLOOKUP(D59,'[1]修正后的面试成绩（排名 )'!$B$2:$J$92,8,0) -> 1.0161797 | H59: =VLOOKUP(D59,'[1]修正后的面试成绩（排名 )'!$B$2:$J$92,9,0) -> 87.15 | I59: 88.09 | J59: 入闱体检
A60: 57 | B60: 100190401050 | C60: 336012602721 | D60: 齐昕怡 | E60: 84.5 | F60: =VLOOKUP(D60,'[1]修正后的面试成绩（排名 )'!$B$2:$J$92,7,0) -> 88.84 | G60: =VLOOKUP(D60,'[1]修正后的面试成绩（排名 )'!$B$2:$J$92,8,0) -> 1.0161797 | H60: =VLOOKUP(D60,'[1]修正后的面试成绩（排名 )'!$B$2:$J$92,9,0) -> 90.28 | I60: 87.97 | J60: 入闱体检
A61: 58 | B61: 100190401050 | C61: 336040602711 | D61: 叶益青 | E61: 85.5 | F61: =VLOOKUP(D61,'[1]修正后的面试成绩（排名 )'!$B$2:$J$92,7,0) -> 88.4 | G61: =VLOOKUP(D61,'[1]修正后的面试成绩（排名 )'!$B$2:$J$92,8,0) -> 0.9860574 | H61: =VLOOKUP(D61,'[1]修正后的面试成绩（排名 )'!$B$2:$J$92,9,0) -> 87.17 | I61: 86.50 | J61: 入闱体检
A62: 59 | B62: 100190401050 | C62: 336012401207 | D62: 欧阳嘉嫔 | E62: 81.5 | F62: =VLOOKUP(D62,'[1]修正后的面试成绩（排名 )'!$B$2:$J$92,7,0) -> 91 | G62: =VLOOKUP(D62,'[1]修正后的面试成绩（排名 )'!$B$2:$J$92,8,0) -> 0.9860574 | H62: =VLOOKUP(D62,'[1]修正后的面试成绩（排名 )'!$B$2:$J$92,9,0) -> 89.73 | I62: 86.44 | J62: 入闱体检
A63: 60 | B63: 100190401050 | C63: 336012602511 | D63: 俞志玲 | E63: 86.0 | F63: =VLOOKUP(D63,'[1]修正后的面试成绩（排名 )'!$B$2:$J$92,7,0) -> 84.72 | G63: =VLOOKUP(D63,'[1]修正后的面试成绩（排名 )'!$B$2:$J$92,8,0) -> 1.0161797 | H63: =VLOOKUP(D63,'[1]修正后的面试成绩（排名 )'!$B$2:$J$92,9,0) -> 86.09 | I63: 86.05 | J63: 入闱体检
A64: 61 | B64: 100190401050 | C64: 336012602127 | D64: 何龙娟 | E64: 78.0 | F64: =VLOOKUP(D64,'[1]修正后的面试成绩（排名 )'!$B$2:$J$92,7,0) -> 91.44 | G64: =VLOOKUP(D64,'[1]修正后的面试成绩（排名 )'!$B$2:$J$92,8,0) -> 0.9860574 | H64: =VLOOKUP(D64,'[1]修正后的面试成绩（排名 )'!$B$2:$J$92,9,0) -> 90.17 | I64: 85.30 | J64: 入闱体检
A65: 62 | B65: 100190401050 | C65: 336012600325 | D65: 夏博颖 | E65: 86.0 | F65: =VLOOKUP(D65,'[1]修正后的面试成绩（排名 )'!$B$2:$J$92,7,0) -> 83.16 | G65: =VLOOKUP(D65,'[1]修正后的面试成绩（排名 )'!$B$2:$J$92,8,0) -> 1.0161797 | H65: =VLOOKUP(D65,'[1]修正后的面试成绩（排名 )'!$B$2:$J$92,9,0) -> 84.51 | I65: 85.11 | J65: 入闱体检
A66: 63 | B66: 100190401050 | C66: 336012400704 | D66: 熊怡 | E66: 85.0 | F66: =VLOOKUP(D66,'[1]修正后的面试成绩（排名 )'!$B$2:$J$92,7,0) -> 83.68 | G66: =VLOOKUP(D66,'[1]修正后的面试成绩（排名 )'!$B$2:$J$92,8,0) -> 1.0161797 | H66: =VLOOKUP(D66,'[1]修正后的面试成绩（排名 )'!$B$2:$J$92,9,0) -> 85.03 | I66: 85.02 | J66: 入闱体检
A67: 64 | B67: 100190401050 | C67: 336012601425 | D67: 陈雅琪 | E67: 87.0 | F67: =VLOOKUP(D67,'[1]修正后的面试成绩（排名 )'!$B$2:$J$92,7,0) -> 82.36 | G67: =VLOOKUP(D67,'[1]修正后的面试成绩（排名 )'!$B$2:$J$92,8,0) -> 1.0161797 | H67: =VLOOKUP(D67,'[1]修正后的面试成绩（排名 )'!$B$2:$J$92,9,0) -> 83.69 | I67: 85.01 | J67: 入闱体检
A68: 65 | B68: 100190401050 | C68: 336012600321 | D68: 刘凯棋 | E68: 88.0 | F68: =VLOOKUP(D68,'[1]修正后的面试成绩（排名 )'!$B$2:$J$92,7,0) -> 81.4 | G68: =VLOOKUP(D68,'[1]修正后的面试成绩（排名 )'!$B$2:$J$92,8,0) -> 1.0161797 | H68: =VLOOKUP(D68,'[1]修正后的面试成绩（排名 )'!$B$2:$J$92,9,0) -> 82.72 | I68: =H68*0.6+E68*0.4 -> 84.83 | J68: 入闱体检
A69: 66 | B69: 100190401050 | C69: 336012501413 | D69: 占佳玲 | E69: 85.5 | F69: =VLOOKUP(D69,'[1]修正后的面试成绩（排名 )'!$B$2:$J$92,7,0) -> 85.44 | G69: =VLOOKUP(D69,'[1]修正后的面试成绩（排名 )'!$B$2:$J$92,8,0) -> 0.9860574 | H69: =VLOOKUP(D69,'[1]修正后的面试成绩（排名 )'!$B$2:$J$92,9,0) -> 84.25 | I69: 84.75 | J69: 入闱体检
A70: 67 | B70: 100190401050 | C70: 336012603325 | D70: 张小雪 | E70: 86.5 | F70: =VLOOKUP(D70,'[1]修正后的面试成绩（排名 )'!$B$2:$J$92,7,0) -> 81.96 | G70: =VLOOKUP(D70,'[1]修正后的面试成绩（排名 )'!$B$2:$J$92,8,0) -> 1.0161797 | H70: =VLOOKUP(D70,'[1]修正后的面试成绩（排名 )'!$B$2:$J$92,9,0) -> 83.29 | I70: 84.57 | J70: 入闱体检
A71: 68 | B71: 100190401050 | C71: 336012602201 | D71: 王欣月 | E71: 85.0 | F71: =VLOOKUP(D71,'[1]修正后的面试成绩（排名 )'!$B$2:$J$92,7,0) -> 82.88 | G71: =VLOOKUP(D71,'[1]修正后的面试成绩（排名 )'!$B$2:$J$92,8,0) -> 1.0161797 | H71: =VLOOKUP(D71,'[1]修正后的面试成绩（排名 )'!$B$2:$J$92,9,0) -> 84.22 | I71: 84.53 | J71: 入闱体检
A72: 69 | B72: 100190401050 | C72: 336012401920 | D72: 吴明燕 | E72: 86.5 | F72: =VLOOKUP(D72,'[1]修正后的面试成绩（排名 )'!$B$2:$J$92,7,0) -> 83.64 | G72: =VLOOKUP(D72,'[1]修正后的面试成绩（排名 )'!$B$2:$J$92,8,0) -> 0.9860574 | H72: =VLOOKUP(D72,'[1]修正后的面试成绩（排名 )'!$B$2:$J$92,9,0) -> 82.47 | I72: 84.08 | J72: 入闱体检
A73: 70 | B73: 100190401050 | C73: 336040600912 | D73: 冯娜燕 | E73: 83.0 | F73: =VLOOKUP(D73,'[1]修正后的面试成绩（排名 )'!$B$2:$J$92,7,0) -> 83.36 | G73: =VLOOKUP(D73,'[1]修正后的面试成绩（排名 )'!$B$2:$J$92,8,0) -> 1.0161797 | H73: =VLOOKUP(D73,'[1]修正后的面试成绩（排名 )'!$B$2:$J$92,9,0) -> 84.71 | I73: 84.03 | J73: 入闱体检
A74: 71 | B74: 100190401050 | C74: 336012401411 | D74: 刘洁 | E74: 81.5 | F74: =VLOOKUP(D74,'[1]修正后的面试成绩（排名 )'!$B$2:$J$92,7,0) -> 86.72 | G74: =VLOOKUP(D74,'[1]修正后的面试成绩（排名 )'!$B$2:$J$92,8,0) -> 0.9860574 | H74: =VLOOKUP(D74,'[1]修正后的面试成绩（排名 )'!$B$2:$J$92,9,0) -> 85.51 | I74: 83.91 | J74: 入闱体检
A75: 72 | B75: 100190401050 | C75: 336012401003 | D75: 邱燕琴 | E75: 83.0 | F75: =VLOOKUP(D75,'[1]修正后的面试成绩（排名 )'!$B$2:$J$92,7,0) -> 85.64 | G75: =VLOOKUP(D75,'[1]修正后的面试成绩（排名 )'!$B$2:$J$92,8,0) -> 0.9860574 | H75: =VLOOKUP(D75,'[1]修正后的面试成绩（排名 )'!$B$2:$J$92,9,0) -> 84.45 | I75: 83.87 | J75: 入闱体检
A76: 73 | B76: 100190401050 | C76: 336012603226 | D76: 夏妹 | E76: 84.0 | F76: =VLOOKUP(D76,'[1]修正后的面试成绩（排名 )'!$B$2:$J$92,7,0) -> 84.96 | G76: =VLOOKUP(D76,'[1]修正后的面试成绩（排名 )'!$B$2:$J$92,8,0) -> 0.9860574 | H76: =VLOOKUP(D76,'[1]修正后的面试成绩（排名 )'!$B$2:$J$92,9,0) -> 83.78 | I76: 83.87
A77: 74 | B77: 100190401050 | C77: 336012600116 | D77: 唐凯婷 | E77: 84.5 | F77: =VLOOKUP(D77,'[1]修正后的面试成绩（排名 )'!$B$2:$J$92,7,0) -> 81.92 | G77: =VLOOKUP(D77,'[1]修正后的面试成绩（排名 )'!$B$2:$J$92,8,0) -> 1.0161797 | H77: =VLOOKUP(D77,'[1]修正后的面试成绩（排名 )'!$B$2:$J$92,9,0) -> 83.25 | I77: 83.75
A78: 75 | B78: 100190401050 | C78: 336012401924 | D78: 陈嘉妮 | E78: 78.5 | F78: =VLOOKUP(D78,'[1]修正后的面试成绩（排名 )'!$B$2:$J$92,7,0) -> 85.84 | G78: =VLOOKUP(D78,'[1]修正后的面试成绩（排名 )'!$B$2:$J$92,8,0) -> 1.0161797 | H78: =VLOOKUP(D78,'[1]修正后的面试成绩（排名 )'!$B$2:$J$92,9,0) -> 87.23 | I78: 83.74
A79: 76 | B79: 100190401050 | C79: 336012500613 | D79: 涂艳芳 | E79: 80.0 | F79: =VLOOKUP(D79,'[1]修正后的面试成绩（排名 )'!$B$2:$J$92,7,0) -> 86.68 | G79: =VLOOKUP(D79,'[1]修正后的面试成绩（排名 )'!$B$2:$J$92,8,0) -> 0.9860574 | H79: =VLOOKUP(D79,'[1]修正后的面试成绩（排名 )'!$B$2:$J$92,9,0) -> 85.47 | I79: 83.28
A80: 77 | B80: 100190401050 | C80: 336012600802 | D80: 舒雨佳 | E80: 82.5 | F80: =VLOOKUP(D80,'[1]修正后的面试成绩（排名 )'!$B$2:$J$92,7,0) -> 84.92 | G80: =VLOOKUP(D80,'[1]修正后的面试成绩（排名 )'!$B$2:$J$92,8,0) -> 0.9860574 | H80: =VLOOKUP(D80,'[1]修正后的面试成绩（排名 )'!$B$2:$J$92,9,0) -> 83.74 | I80: 83.24
A81: 78 | B81: 100190401050 | C81: 336012602001 | D81: 文佳 | E81: 85.5 | F81: =VLOOKUP(D81,'[1]修正后的面试成绩（排名 )'!$B$2:$J$92,7,0) -> 80.32 | G81: =VLOOKUP(D81,'[1]修正后的面试成绩（排名 )'!$B$2:$J$92,8,0) -> 1.0161797 | H81: =VLOOKUP(D81,'[1]修正后的面试成绩（排名 )'!$B$2:$J$92,9,0) -> 81.62 | I81: 83.17
A82: 79 | B82: 100190401050 | C82: 336012402422 | D82: 谭杜娟 | E82: 86.0 | F82: =VLOOKUP(D82,'[1]修正后的面试成绩（排名 )'!$B$2:$J$92,7,0) -> 82.4 | G82: =VLOOKUP(D82,'[1]修正后的面试成绩（排名 )'!$B$2:$J$92,8,0) -> 0.9860574 | H82: =VLOOKUP(D82,'[1]修正后的面试成绩（排名 )'!$B$2:$J$92,9,0) -> 81.25 | I82: 83.15
A83: 80 | B83: 100190401050 | C83: 336012603104 | D83: 陈慧 | E83: 85.0 | F83: =VLOOKUP(D83,'[1]修正后的面试成绩（排名 )'!$B$2:$J$92,7,0) -> 83.04 | G83: =VLOOKUP(D83,'[1]修正后的面试成绩（排名 )'!$B$2:$J$92,8,0) -> 0.9860574 | H83: =VLOOKUP(D83,'[1]修正后的面试成绩（排名 )'!$B$2:$J$92,9,0) -> 81.88 | I83: 83.13
A84: 81 | B84: 100190401050 | C84: 336012402224 | D84: 盛钰 | E84: 82.5 | F84: =VLOOKUP(D84,'[1]修正后的面试成绩（排名 )'!$B$2:$J$92,7,0) -> 82.2 | G84: =VLOOKUP(D84,'[1]修正后的面试成绩（排名 )'!$B$2:$J$92,8,0) -> 1.0161797 | H84: =VLOOKUP(D84,'[1]修正后的面试成绩（排名 )'!$B$2:$J$92,9,0) -> 83.53 | I84: 83.12
A85: 82 | B85: 100190401050 | C85: 336012502611 | D85: 魏欣宇 | E85: 81.5 | F85: =VLOOKUP(D85,'[1]修正后的面试成绩（排名 )'!$B$2:$J$92,7,0) -> 85.24 | G85: =VLOOKUP(D85,'[1]修正后的面试成绩（排名 )'!$B$2:$J$92,8,0) -> 0.9860574 | H85: =VLOOKUP(D85,'[1]修正后的面试成绩（排名 )'!$B$2:$J$92,9,0) -> 84.05 | I85: 83.03
A86: 83 | B86: 100190401050 | C86: 336012602703 | D86: 陈茜 | E86: 84.0 | F86: =VLOOKUP(D86,'[1]修正后的面试成绩（排名 )'!$B$2:$J$92,7,0) -> 83.4 | G86: =VLOOKUP(D86,'[1]修正后的面试成绩（排名 )'!$B$2:$J$92,8,0) -> 0.9860574 | H86: =VLOOKUP(D86,'[1]修正后的面试成绩（排名 )'!$B$2:$J$92,9,0) -> 82.24 | I86: 82.94
A87: 84 | B87: 100190401050 | C87: 336012601219 | D87: 熊安平 | E87: 84.5 | F87: =VLOOKUP(D87,'[1]修正后的面试成绩（排名 )'!$B$2:$J$92,7,0) -> 80.44 | G87: =VLOOKUP(D87,'[1]修正后的面试成绩（排名 )'!$B$2:$J$92,8,0) -> 1.0161797 | H87: =VLOOKUP(D87,'[1]修正后的面试成绩（排名 )'!$B$2:$J$92,9,0) -> 81.74 | I87: 82.84
A88: 85 | B88: 100190401050 | C88: 336012707313 | D88: 胡文琦 | E88: 83.5 | F88: =VLOOKUP(D88,'[1]修正后的面试成绩（排名 )'!$B$2:$J$92,7,0) -> 79.84 | G88: =VLOOKUP(D88,'[1]修正后的面试成绩（排名 )'!$B$2:$J$92,8,0) -> 1.0161797 | H88: =VLOOKUP(D88,'[1]修正后的面试成绩（排名 )'!$B$2:$J$92,9,0) -> 81.13 | I88: 82.08
A89: 86 | B89: 100190401050 | C89: 336012707505 | D89: 舒志艳 | E89: 77.5 | F89: =VLOOKUP(D89,'[1]修正后的面试成绩（排名 )'!$B$2:$J$92,7,0) -> 82.88 | G89: =VLOOKUP(D89,'[1]修正后的面试成绩（排名 )'!$B$2:$J$92,8,0) -> 1.0161797 | H89: =VLOOKUP(D89,'[1]修正后的面试成绩（排名 )'!$B$2:$J$92,9,0) -> 84.22 | I89: 81.53
A90: 87 | B90: 100190401050 | C90: 336221807905 | D90: 丁玉欣 | E90: 79.0 | F90: =VLOOKUP(D90,'[1]修正后的面试成绩（排名 )'!$B$2:$J$92,7,0) -> 83.08 | G90: =VLOOKUP(D90,'[1]修正后的面试成绩（排名 )'!$B$2:$J$92,8,0) -> 0.9860574 | H90: =VLOOKUP(D90,'[1]修正后的面试成绩（排名 )'!$B$2:$J$92,9,0) -> 81.92 | I90: 80.75
A91: 88 | B91: 100190401050 | C91: 336012602230 | D91: 陈奕君 | E91: 78.5 | F91: =VLOOKUP(D91,'[1]修正后的面试成绩（排名 )'!$B$2:$J$92,7,0) -> 82.72 | G91: =VLOOKUP(D91,'[1]修正后的面试成绩（排名 )'!$B$2:$J$92,8,0) -> 0.9860574 | H91: =VLOOKUP(D91,'[1]修正后的面试成绩（排名 )'!$B$2:$J$92,9,0) -> 81.57 | I91: 80.34
A92: 89 | B92: 100190401050 | C92: 336012600201 | D92: 熊果 | E92: 81.5 | F92: =VLOOKUP(D92,'[1]修正后的面试成绩（排名 )'!$B$2:$J$92,7,0) -> 76.64 | G92: =VLOOKUP(D92,'[1]修正后的面试成绩（排名 )'!$B$2:$J$92,8,0) -> 0.9860574 | H92: =VLOOKUP(D92,'[1]修正后的面试成绩（排名 )'!$B$2:$J$92,9,0) -> 75.57 | I92: 77.94
A93: 90 | B93: 100190401050 | C93: 336250106628 | D93: 曾佩秀 | E93: 81.0 | F93: =VLOOKUP(D93,'[1]修正后的面试成绩（排名 )'!$B$2:$J$92,7,0) -> 0 | G93: =VLOOKUP(D93,'[1]修正后的面试成绩（排名 )'!$B$2:$J$92,8,0) -> 1.0161797 | H93: =VLOOKUP(D93,'[1]修正后的面试成绩（排名 )'!$B$2:$J$92,9,0) -> 0 | I93: 32.40
